fUSD/lending_fUSD_20240619
["ID","MTS","AMOUNT","RATE_DAILY","PERIOD"]
[329877303,1718782021710,-4011.6,0.00030136,120]
[329877304,1718782021740,-4011.6,0.00030136,120]
[329877305,1718782021770,-4011.6,0.00030136,120]
[329877306,1718782021799,-4011.6,0.00030136,120]
[329877307,1718782021830,-4011.6,0.00030136,120]
[329877308,1718782021861,-4011.6,0.00030136,120]
[329877309,1718782021894,-4011.6,0.00030136,120]
[329877310,1718782021927,-4011.6,0.00030136,120]
[329877311,1718782021956,-4011.6,0.00030136,120]
[329877312,1718782021988,-4011.6,0.00030136,120]
[329877313,1718782022018,-4011.6,0.00030136,120]
[329877314,1718782022050,-4011.6,0.00030136,120]
[329877315,1718782022081,-4011.6,0.00030136,120]
[329877316,1718782022112,-4011.6,0.00030136,120]
[329877317,1718782022141,-4011.6,0.00030136,120]
[329877318,1718782022170,-4011.65129537,0.00030136,120]
[329877319,1718782022209,-1403.38885966,0.00032,60]
[329877320,1718782022259,-941271.04715954,0.000348,30]
[329877321,1718782022289,-375.0,0.00034907,120]
[329877322,1718782022324,-181.31310422,0.00034999,120]
[329877323,1718782022355,-914.92446075,0.00035,30]
[329877324,1718782022385,-600.0,0.00035,30]
[329877325,1718782022416,-958975.87512046,0.00035,30]
[329877326,1718782026257,-41024.12487954,0.00035,30]
[329877327,1718782026281,-103903.35410382,0.00035,30]
[329877328,1718782026305,-200.0,0.00035,120]
[329877329,1718782026330,-450.0,0.0003502,30]
[329877330,1718782026355,-1000.0,0.00035805,30]
[329877331,1718782026690,-158.24,0.00035959,120]
[329877332,1718782026715,-800.0,0.00036,120]
[329877333,1718782026739,-750.0,0.00036,120]
[329877334,1718782026763,-1000000.0,0.00036,30]
[329877335,1718782026787,-1000.0,0.00036183,30]
[329877336,1718782026810,-450.0,0.0003626,30]
[329877337,1718782026836,-375.0,0.00036447,120]
[329877338,1718782026859,-1000.0,0.00036561,30]
[329877339,1718782026888,-1790.753064,0.000368,30]
[329877340,1718782026915,-847098.52795264,0.000368,30]
[329877341,1718782031968,-73094.44174086,0.00028,30]
[329877342,1718782032052,-588678.47204735,0.000368,30]
[329877343,1718782032085,-151.0,0.000368,32]
[329877344,1718782032111,-1000.0,0.00036939,30]
[329877345,1718782032136,-1089.0,0.00037,120]
[329877346,1718782032159,-1000000.0,0.00037,30]
[329877347,1718782032184,-2675.34,0.00037031,30]
[329877348,1718782032208,-1000.0,0.00037317,30]
[329877349,1718782032232,-450.0,0.000375,30]
[329877350,1718782032256,-331861.74621179,0.000375,30]
[329877351,1718782037612,-662.65384116,0.0003,120]
[329877352,1718782037658,-668138.25378821,0.000375,30]
[329877353,1718782037682,-2600.55931449,0.000375,50]
[329877354,1718782037706,-1000.0,0.00037695,30]
[329877355,1718782037730,-300.54186101,0.0003792,120]
[329877356,1718782037754,-375.0,0.00037987,120]
[329877357,1718782037778,-14597.0,0.00038,60]
[329877358,1718782037802,-722.4014948,0.00038,120]
[329877359,1718782037826,-1724.90922341,0.00038,30]
[329877360,1718782037852,-800.0,0.00038,120]
[329877361,1718782037878,-1150.0,0.00038,120]
[329877362,1718782037906,-5777.6,0.00038,30]
[329877363,1718782037932,-300.0,0.00038,120]
[329877364,1718782037955,-25578.5374026,0.00038,120]
[329877365,1718782037979,-5633.06394964,0.00038,120]
[329877366,1718782038004,-1000.0,0.00038073,30]
[329877367,1718782038624,6914.51720346,0.00035,30]
[329877368,1718782038784,1403.38885966,0.00032,60]
[329877369,1718782038893,351641.99304509,0.000329,30]
[329877370,1718782039217,621.93431348,0.00029,30]
[329877371,1718782044421,165.73,0.00038356,30]
[329877374,1718782055350,-50000.0,0.00028077,30]
[329877375,1718782055373,-160.0,0.00028077,30]
[329877376,1718782055720,-979.0,0.00028077,30]
[329877377,1718782055743,-195.5360948,0.00028077,30]
[329877378,1718782055768,-236.72728269,0.00028077,30]
[329877379,1718782055791,-211.9459267,0.00028077,30]
[329877380,1718782055814,-171.77015016,0.00028077,30]
[329877381,1718782055837,-190.0,0.00028077,30]
[329877382,1718782055861,-524.0,0.00028077,30]
[329877383,1718782055886,-5000.0,0.00028077,120]
[329877384,1718782055913,-190.0,0.00028077,30]
[329877385,1718782055936,-347.06126576,0.00028077,30]
[329877386,1718782055961,-404.8385,0.00028077,30]
[329877387,1718782055988,-1152.98785022,0.00028077,120]
[329877388,1718782056015,-153.73368651,0.00028077,30]
[329877389,1718782056041,-260.28392702,0.00028077,30]
[329877390,1718782056066,-237.3061028,0.00028077,60]
[329877391,1718782056090,-5998.28270162,0.00028077,120]
[329877392,1718782056118,-1459.30364689,0.00028077,120]
[329877393,1718782056145,-150.0,0.00028077,30]
[329877394,1718782056172,-152.26051227,0.00028077,30]
[329877395,1718782056196,-1000.0,0.00028077,30]
[329877396,1718782056222,-904.0,0.00028077,30]
[329877397,1718782056247,-278.11291908,0.00028077,120]
[329877398,1718782056271,-3100.0,0.00028077,120]
[329877399,1718782056298,-200.0,0.00028077,30]
[329877400,1718782056323,-200.0,0.00028077,30]
[329877401,1718782056348,-202.320905,0.00028077,30]
[329877856,1718782194817,-2197.54501816,0.00011861,2]
[329877857,1718782194840,-1278.9757457,0.00011862,2]
[329877858,1718782203143,150.0,0.00011862,2]
[329877859,1718782203416,-430.33647514,0.00011863,2]
[329877860,1718782203437,-9233.78477201,0.00011863,2]
[329877861,1718782203702,150.0,0.00011862,2]
[329877862,1718782216363,-365.94464006,0.00011864,2]
[329877863,1718782216386,-1000.0,0.00011864,2]
[329877864,1718782216406,-39326.7426583,0.00011864,2]
[329877867,1718782232153,-341.68853004,0.00011865,2]
[329877868,1718782232164,-570.09,0.00011865,2]
[329877871,1718782232177,-88.22146996,0.00011865,2]
[329877873,1718782232187,-384.70424274,0.00011928,2]
[329877876,1718782232198,-152.15630789,0.00011928,2]
[329877879,1718782232207,-98.18149764,0.00011952,2]
[329877881,1718782232219,-363.6,0.00011952,2]
[329877883,1718782232230,-38.21850236,0.00011952,2]
[329877884,1718782232239,-394.70149764,0.00011952,3]
[329877885,1718782232471,-105.29850236,0.00011952,3]
[329877886,1718782232482,-974.07,0.00012106,2]
[329877887,1718782232493,-158.06324403,0.00012173,2]
[329877888,1718782232505,-368.7,0.00012223,2]
[329877889,1718782232515,-360.25,0.00012223,2]
[329877890,1718782232526,-250.0,0.00012224,2]
[329877891,1718782232536,-777.21,0.00012224,2]
[329877892,1718782232546,-150.99,0.00012224,2]
[329877893,1718782232556,-499.99,0.00012224,2]
[329877894,1718782232566,-160.0,0.0001224,2]
[329877895,1718782232575,-1012.2,0.0001224,2]
[329877896,1718782232585,-31904.01565327,0.00012273,2]
[329877897,1718782232595,-1.5726871,0.00012274,4]
[329877898,1718782232609,-1325.8073129,0.00012274,4]
[329877899,1718782232624,-250.0,0.00012295,2]
[329877900,1718782232635,-564.90339964,0.00012328,2]
[329877901,1718782232646,-187.17,0.00012408,2]
[329877902,1718782232656,-872.8,0.00012481,2]
[329877903,1718782232666,-170.62,0.00012497,2]
[329877904,1718782232677,-460.90794393,0.00012637,2]
[329877905,1718782232687,-840.0,0.00012638,2]
[329877906,1718782232697,-177.01103398,0.00012638,2]
[329877907,1718782232709,-30.90896602,0.00012638,2]
[329877908,1718782232719,-178.27,0.00012645,2]
[329877909,1718782232730,-419.27,0.00012645,2]
[329877910,1718782232740,-703.69,0.00012803,2]
[329877911,1718782232752,-625.29760276,0.00013146,2]
[329877912,1718782232762,-7511.15,0.00013389,2]
[329877913,1718782232772,-156.0,0.0001347,2]
[329877914,1718782232781,-2684.6859,0.00013496,2]
[329877915,1718782232791,-618.94154666,0.00013496,2]
[329877916,1718782232803,-1072.14837001,0.00013496,2]
[329877917,1718782232815,-4861.77848333,0.00013496,2]
[329877919,1718782232825,-1026.0,0.000135,2]
[329877920,1718782232836,-383.3117566,0.00013508,2]
[329877921,1718782232846,-419.23220875,0.00013525,2]
[329877922,1718782232855,-3006.0551001,0.00013558,2]
[329877923,1718782232867,-3971.07024,0.00013558,2]
[329877924,1718782232888,-444.0746599,0.00013558,2]
[329877925,1718782232899,-499.9786,0.00013582,2]
[329877926,1718782232909,-3377.08937458,0.00013582,2]
[329877927,1718782232921,-760.55939495,0.00013582,2]
[329877928,1718782232933,-12547.90531229,0.00013582,2]
[329877929,1718782236353,2000.0,0.00024,30]
[329877931,1718782238280,-1062.99965272,0.0001356,2]
[329877933,1718782238293,-358.33485164,0.0001356,2]
[329877934,1718782238305,-603.45575644,0.0001356,2]
[329877935,1718782238317,-910.60655848,0.0001356,2]
[329877936,1718782238330,-64.60318072,0.0001356,2]
[329877937,1718782238340,-335.10515844,0.00013582,2]
[329877938,1718782238353,-573.2828905,0.00013582,2]
[329877939,1718782238365,-4455.42176924,0.00013582,2]
[329877940,1718782238375,-91525.0112,0.00013596,2]
[329877941,1718782238385,-4795.57302523,0.00013596,2]
[329877942,1718782238396,-171.56244532,0.00013596,2]
[329877943,1718782238406,-641.69026321,0.00013596,2]
[329877944,1718782238416,-1059.67338186,0.00013596,2]
[329877945,1718782238429,-672.57,0.00013596,2]
[329877946,1718782238440,-5594.11890352,0.00013596,2]
[329877947,1718782238450,-179.38098978,0.00013596,2]
[329877948,1718782238460,-316.40685217,0.00013596,2]
[329877949,1718782238469,-4296.19210245,0.00013598,2]
[329877950,1718782238618,-9053.22179755,0.00013598,2]
[329877953,1718782238628,-701.15485806,0.00013598,2]
[329877955,1718782238641,-298.84514194,0.00013598,2]
[329877957,1718782238650,-523.64503353,0.00013672,2]
[329877959,1718782238663,-4640.35496647,0.00013672,2]
[329877961,1718782238673,-1565.904,0.00013672,2]
[329877963,1718782238682,-165.0,0.00013672,2]
[329877965,1718782238692,-617.0,0.00013672,2]
[329877966,1718782238702,-4616.24077475,0.00013682,2]
[329877967,1718782238712,-260.21570864,0.00013686,2]
[329877968,1718782238721,-1023.64962857,0.00013692,2]
[329877969,1718782238731,-278.38473833,0.00013693,2]
[329877970,1718782238740,-362.36996851,0.00013693,2]
[329877971,1718782238750,-652.57538602,0.00013693,2]
[329877972,1718782238763,-1122.52393765,0.00013693,2]
[329877973,1718782238771,-155.43300154,0.00013693,2]
[329877974,1718782238781,-156.85534541,0.00013693,2]
[329877975,1718782238790,-551.2552136,0.00013693,2]
[329877976,1718782238799,-263.36508827,0.00013693,2]
[329877977,1718782238809,-155.45678494,0.00013693,2]
[329877978,1718782238818,-156.62073465,0.00013693,2]
[329877979,1718782238828,-157.65190098,0.00013693,2]
[329877980,1718782238837,-750.0,0.00013693,2]
[329877981,1718782238847,-271.60383587,0.00013693,2]
[329877982,1718782238857,-306.61638084,0.00013693,2]
[329877983,1718782238869,-9881.99222486,0.00013693,2]
[329877984,1718782238881,-2634.24062186,0.00013693,2]
[329877985,1718782238890,-155.17395919,0.00013693,2]
[329877986,1718782238900,-265.61484927,0.00013693,2]
[329877987,1718782238909,-633.40199947,0.00013693,2]
[329877988,1718782238920,-209.22951034,0.00013693,2]
[329877989,1718782238929,-303.74666407,0.00013693,2]
[329877990,1718782238939,-1057.17960468,0.00013693,2]
[329877991,1718782238949,-646.62753249,0.00013693,2]
[329877992,1718782238963,-430.33647514,0.00013693,2]
[329877993,1718782238973,-495.83945855,0.00013693,2]
[329877994,1718782238983,-365.94464006,0.00013693,2]
[329877995,1718782238994,-570.80308488,0.00013693,2]
[329877996,1718782239010,-429.19691512,0.00013693,2]
[329877997,1718782239021,-4087.19329881,0.00013694,2]
[329877998,1718782239032,-2629.90358607,0.00013695,2]
[329877999,1718782239048,-18261.65070178,0.00013695,2]
[329878000,1718782240477,-812.0,0.00013672,2]
[329878001,1718782240487,-267.69760041,0.00013695,2]
[329878011,1718782244211,-316.40685217,0.00013597,2]
[329878014,1718782244221,-1251.88867614,0.00013695,2]
[329878018,1718782244233,-870.60999909,0.00013695,2]
[329878021,1718782244245,-661.66608519,0.00013695,2]
[329878024,1718782244257,-6871.99575825,0.00013695,2]
[329878031,1718782244287,-1040.16476904,0.00013695,2]
[329878033,1718782244299,-546.23509259,0.00013695,2]
[329878035,1718782244723,-326869.86831284,0.00013695,2]
[329878038,1718782244733,-2329.83297667,0.00013696,2]
[329878041,1718782244743,-2269.48302343,0.00013696,2]
[329878044,1718782244753,-265.10296284,0.00013696,2]
[329878046,1718782244765,-410.0140434,0.00013696,2]
[329878048,1718782244774,-479.33352864,0.00013696,2]
[329878050,1718782244783,-1068.60465883,0.00013696,2]
[329878052,1718782244792,-346777.08526246,0.00013696,2]
[329878054,1718782244804,-1163.68068873,0.00013696,2]
[329878056,1718782244815,-107871.2001077,0.00013696,2]
[329878058,1718782244825,-897.64088682,0.00013696,2]
[329878060,1718782244834,-340.69188394,0.00013696,2]
[329878061,1718782244844,-538.4252942,0.00013696,2]
[329878062,1718782244854,-546.46139874,0.00013696,2]
[329878063,1718782244864,-217.71158909,0.00013697,2]
[329878064,1718782244874,-1286.8,0.00013698,2]
[329878065,1718782244884,-500.0,0.00013698,2]
[329878066,1718782244893,-500.0,0.00013698,2]
[329878067,1718782244902,-500.0,0.00013698,2]
[329878068,1718782244913,-500.0,0.00013698,2]
[329878069,1718782244924,-1100.24,0.00013698,2]
[329878070,1718782244935,-500.0,0.00013698,2]
[329878071,1718782244945,-777.62,0.00013698,2]
[329878072,1718782244957,-500.0,0.00013698,2]
[329878073,1718782244969,-500.0,0.00013698,2]
[329878074,1718782244980,-500.0,0.00013698,2]
[329878075,1718782244990,-500.0,0.00013698,2]
[329878076,1718782244999,-500.0,0.00013698,2]
[329878077,1718782245008,-500.0,0.00013698,2]
[329878078,1718782245019,-500.0,0.00013698,2]
[329878079,1718782245029,-560.47,0.00013698,2]
[329878080,1718782245042,-500.0,0.00013698,2]
[329878081,1718782245052,-555.43,0.00013698,2]
[329878082,1718782245063,-563.92,0.00013698,2]
[329878083,1718782245073,-500.0,0.00013698,2]
[329878084,1718782245082,-569.32,0.00013698,2]
[329878085,1718782245094,-384.83146835,0.00013698,2]
[329878086,1718782245104,-500.0,0.00013698,2]
[329878087,1718782245115,-500.0,0.00013698,2]
[329878088,1718782245124,-194.63702398,0.00013698,2]
[329878089,1718782245133,-598.65,0.00013698,2]
[329878090,1718782245142,-785.93,0.00013698,2]
[329878091,1718782245152,-500.0,0.00013698,2]
[329878092,1718782245161,-525.68,0.00013698,2]
[329878093,1718782245171,-532.07,0.00013698,2]
[329878094,1718782245180,-500.0,0.00013698,2]
[329878095,1718782245189,-500.0,0.00013698,2]
[329878096,1718782245200,-500.0,0.00013698,2]
[329878097,1718782245210,-500.0,0.00013698,2]
[329878098,1718782245219,-500.0,0.00013698,2]
[329878099,1718782245229,-500.0,0.00013698,2]
[329878100,1718782245241,-500.0,0.00013698,2]
[329878101,1718782245250,-603.99,0.00013698,2]
[329878102,1718782245262,-500.0,0.00013698,2]
[329878103,1718782245271,-671.21,0.00013698,2]
[329878104,1718782245280,-504.41,0.00013698,2]
[329878105,1718782245289,-500.0,0.00013698,2]
[329878106,1718782245298,-946.11,0.00013698,2]
[329878107,1718782245308,-500.0,0.00013698,2]
[329878108,1718782245319,-500.0,0.00013698,2]
[329878109,1718782245329,-500.0,0.00013698,2]
[329878110,1718782245339,-500.0,0.00013698,2]
[329878111,1718782245348,-500.0,0.00013698,2]
[329878112,1718782245357,-500.0,0.00013698,2]
[329878113,1718782245367,-500.0,0.00013698,2]
[329878114,1718782245376,-810.6,0.00013698,2]
[329878115,1718782245385,-500.0,0.00013698,2]
[329878116,1718782245395,-500.0,0.00013698,2]
[329878117,1718782245405,-500.0,0.00013698,2]
[329878118,1718782245414,-500.0,0.00013698,2]
[329878119,1718782245424,-500.0,0.00013698,2]
[329878120,1718782245434,-1013.18,0.00013698,2]
[329878121,1718782245443,-500.0,0.00013698,2]
[329878122,1718782245452,-151.70139828,0.00013698,2]
[329878123,1718782245462,-500.0,0.00013698,2]
[329878124,1718782245471,-500.0,0.00013698,2]
[329878125,1718782245481,-500.0,0.00013698,2]
[329878126,1718782245491,-500.0,0.00013698,2]
[329878127,1718782245500,-500.0,0.00013698,2]
[329878128,1718782245511,-729.2,0.00013698,2]
[329878129,1718782245521,-500.0,0.00013698,2]
[329878130,1718782245531,-500.0,0.00013698,2]
[329878131,1718782245540,-500.0,0.00013698,2]
[329878132,1718782245550,-1004.07,0.00013698,2]
[329878133,1718782245560,-500.0,0.00013698,2]
[329878134,1718782245569,-500.0,0.00013698,2]
[329878135,1718782245578,-500.0,0.00013698,2]
[329878136,1718782245588,-500.0,0.00013698,2]
[329878137,1718782245597,-668.67,0.00013698,2]
[329878138,1718782245607,-1085.7,0.00013698,2]
[329878139,1718782245616,-500.0,0.00013698,2]
[329878140,1718782245626,-500.0,0.00013698,2]
[329878141,1718782245636,-500.0,0.00013698,2]
[329878142,1718782245646,-500.0,0.00013698,2]
[329878143,1718782245656,-526.44249382,0.00013698,2]
[329878144,1718782245666,-755.71,0.00013698,2]
[329878145,1718782245676,-500.0,0.00013698,2]
[329878146,1718782245686,-500.0,0.00013698,2]
[329878147,1718782245695,-548.83742509,0.00013698,2]
[329878148,1718782245705,-528.08,0.00013698,2]
[329878149,1718782245714,-500.0,0.00013698,2]
[329878150,1718782245724,-500.0,0.00013698,2]
[329878151,1718782245733,-552.7,0.00013698,2]
[329878152,1718782245745,-575.59,0.00013698,2]
[329878153,1718782245754,-500.0,0.00013698,2]
[329878154,1718782245765,-500.0,0.00013698,2]
[329878155,1718782245774,-500.0,0.00013698,2]
[329878156,1718782245784,-500.0,0.00013698,2]
[329878157,1718782245793,-500.0,0.00013698,2]
[329878158,1718782245802,-500.0,0.00013698,2]
[329878159,1718782245811,-506.48,0.00013698,2]
[329878160,1718782245821,-674.62,0.00013698,2]
[329878161,1718782245830,-604.61,0.00013698,2]
[329878162,1718782245839,-793.73,0.00013698,2]
[329878163,1718782245848,-806.77,0.00013698,2]
[329878164,1718782245858,-500.0,0.00013698,2]
[329878165,1718782245867,-500.0,0.00013698,2]
[329878166,1718782245876,-507.24783695,0.00013698,2]
[329878167,1718782245886,-2181.13,0.00013698,2]
[329878168,1718782245896,-500.0,0.00013698,2]
[329878169,1718782245906,-771.85,0.00013698,2]
[329878170,1718782245916,-253.17950113,0.00013698,2]
[329878171,1718782245926,-847.75,0.00013698,2]
[329878172,1718782245936,-500.0,0.00013698,2]
[329878173,1718782245945,-500.0,0.00013698,2]
[329878174,1718782246232,-715.95,0.00013698,2]
[329878175,1718782246242,-500.0,0.00013698,2]
[329878176,1718782246252,-1200.01,0.00013698,2]
[329878177,1718782246264,-500.0,0.00013698,2]
[329878179,1718782246274,-500.0,0.00013698,2]
[329878180,1718782246284,-579.88,0.00013698,2]
[329878181,1718782246294,-1167.64,0.00013698,2]
[329878183,1718782246303,-500.0,0.00013698,2]
[329878185,1718782246314,-500.0,0.00013698,2]
[329878186,1718782246323,-690.47,0.00013698,2]
[329878187,1718782246333,-500.0,0.00013698,2]
[329878188,1718782246343,-918.3,0.00013698,2]
[329878189,1718782246353,-1354.07,0.00013698,2]
[329878190,1718782246362,-500.0,0.00013698,2]
[329878191,1718782246371,-500.0,0.00013698,2]
[329878192,1718782246381,-500.0,0.00013698,2]
[329878193,1718782246391,-500.0,0.00013698,2]
[329878194,1718782246400,-618.22,0.00013698,2]
[329878195,1718782246410,-500.0,0.00013698,2]
[329878196,1718782246420,-500.0,0.00013698,2]
[329878197,1718782246429,-1181.56,0.00013698,2]
[329878198,1718782246439,-500.0,0.00013698,2]
[329878199,1718782246449,-2132.44,0.00013698,2]
[329878200,1718782246458,-500.0,0.00013698,2]
[329878201,1718782246468,-554.62178713,0.00013698,2]
[329878202,1718782246477,-1300.56,0.00013698,2]
[329878203,1718782246487,-500.0,0.00013698,2]
[329878204,1718782246496,-500.0,0.00013698,2]
[329878205,1718782246506,-500.0,0.00013698,2]
[329878206,1718782246518,-500.0,0.00013698,2]
[329878207,1718782246527,-655.21238171,0.00013698,2]
[329878208,1718782246546,-543.20799838,0.00013698,2]
[329878209,1718782246558,-185.10961991,0.00013698,2]
[329878210,1718782246568,-500.0,0.00013698,2]
[329878211,1718782246578,-240.39633006,0.00013698,2]
[329878212,1718782246590,-427.149998,0.00013698,2]
[329878213,1718782246601,-1502.81579274,0.00013698,2]
[329880049,1718782404469,151.0,0.00026,90]
[329880051,1718782499022,785.52,9.594e-05,2]
[329880052,1718782527511,1788.46,0.00011434,2]
[329880054,1718782596577,1651.0,0.0001,2]
[329880055,1718782727318,188.27,0.00011423,2]
[329880056,1718782826745,934.66,0.00011395,2]
[329880057,1718782833861,1000.0,0.0001141,2]
[329880058,1718782872511,176.46,0.0001139,2]
[329880059,1718782897745,250.0,0.0001139,2]
[329880060,1718782899611,250.0,0.0001139,2]
[329880061,1718782968232,200.0,0.00011364,2]
[329880062,1718782977453,3931.94,0.00011327,2]
[329880063,1718782982189,-206.29106117,0.00011635,2]
[329880064,1718782982213,-155.0,0.00011636,2]
[329880065,1718782982237,-1000.0,0.00011637,2]
[329880066,1718782982258,-646.72934013,0.00011638,2]
[329880067,1718782982287,-238.31120085,0.00011639,2]
[329880068,1718782982307,-1588.92419536,0.00011648,2]
[329880069,1718782982329,-1211.59692892,0.00011662,2]
[329880070,1718782982350,-150.0,0.00011662,2]
[329880071,1718782982371,-300.0,0.00011662,2]
[329880072,1718782989184,150.0,0.00011469,2]
[329880073,1718782997074,-49072.4115964,0.00011663,2]
[329880074,1718783006707,705.72,0.00011487,2]
[329880075,1718783017526,-872.0,0.00011819,2]
[329880076,1718783017550,-499.99,0.00011819,2]
[329880077,1718783017575,-785.52,0.00011858,2]
[329880078,1718783017599,-161.1,0.00011952,2]
[329880079,1718783017623,-170.15,0.00011952,2]
[329880080,1718783017647,-161.1,0.00011955,2]
[329880081,1718783017671,-161.1,0.00011958,2]
[329880082,1718783017692,-10077.81,0.00011958,2]
[329880083,1718783032351,-161.1,0.00011961,2]
[329880084,1718783032375,-161.1,0.00011964,2]
[329880085,1718783032399,-161.1,0.00011967,2]
[329880086,1718783032423,-161.1,0.00011971,2]
[329880087,1718783032447,-161.1,0.00011974,2]
[329880088,1718783032468,-161.1,0.00011977,2]
[329880089,1718783032489,-161.1,0.0001198,2]
[329880090,1718783032511,-161.1,0.00011983,2]
[329880091,1718783032533,-161.1,0.00011986,2]
[329880092,1718783032557,-161.1,0.00011989,2]
[329880093,1718783032582,-161.1,0.00011993,2]
[329880094,1718783032604,-161.1,0.00011996,2]
[329880095,1718783032625,-161.1,0.00011999,2]
[329880096,1718783032646,-1000.0,0.00012,2]
[329880097,1718783032668,-161.1,0.00012002,2]
[329880098,1718783032691,-161.1,0.00012005,2]
[329880099,1718783032713,-161.1,0.00012008,2]
[329880100,1718783032735,-161.1,0.00012012,2]
[329880101,1718783032756,-156.91,0.00012041,2]
[329880102,1718783043532,-457.53727357,0.00012664,2]
[329880103,1718783047293,-5023.55232518,0.00012664,2]
[329880104,1718783047316,-460.90794393,0.00012665,2]
[329880105,1718783047341,-434.17512218,0.00012666,2]
[329880106,1718783047362,-205.0,0.00012828,2]
[329880107,1718783047389,-300.0,0.00012979,2]
[329880108,1718783047411,-13965.43107271,0.0001298,2]
[329880109,1718783065164,1000.0,0.00011327,2]
[329880110,1718783068764,-10000.0,0.00011958,2]
[329880111,1718783077163,-1000.0,0.00012743,2]
[329880112,1718783077187,-1000.0,0.00012979,2]
[329880113,1718783077210,-8000.0,0.0001298,2]
[329880114,1718783084315,706.96,0.00010806,2]
[329880115,1718783101012,-10000.0,0.00011958,2]
[329880116,1718783106077,-3753.1223,0.0001288,2]
[329880117,1718783106101,-3000.08352058,0.0001295,2]
[329880118,1718783106125,-300.0,0.00012979,2]
[329880119,1718783106147,-2946.79417942,0.0001298,2]
[329880155,1718783432496,-625.3983,0.0001266,2]
[329880162,1718783433043,-374.6017,0.0001266,2]
[329880163,1718783433053,-460.90794393,0.00012661,2]
[329880164,1718783433063,-1191.97,0.00012671,2]
[329880165,1718783433072,-300.0,0.00012979,2]
[329880166,1718783433082,-624.6263776,0.0001298,2]
[329880202,1718783438312,-597.4,0.0001298,2]
[329880203,1718783438371,-772.55718592,0.0001298,2]
[329880204,1718783438382,-30000.0,0.0001298,2]
[329880205,1718783438392,-1302.76719431,0.00013011,2]
[329880206,1718783438401,-1000.0,0.00013061,2]
[329880207,1718783438411,-14484.0,0.00013063,2]
[329880208,1718783438420,-706.96,0.0001307,2]
[329880209,1718783438429,-150.0,0.0001337,2]
[329880210,1718783438439,-2119.082,0.00013396,2]
[329880211,1718783438448,-272.8985,0.00013396,2]
[329880212,1718783438458,-7548.1,0.00013463,2]
[329880215,1718783438467,-159.0,0.0001347,2]
[329880217,1718783438478,-34576.6997,0.00013496,2]
[329880218,1718783438487,-35177.1638,0.00013496,2]
[329880220,1718783438497,-6279.2188,0.00013496,2]
[329880222,1718783438506,-698.4351,0.00013496,2]
[329880224,1718783438516,-8707.6649,0.00013496,2]
[329880226,1718783438526,-500.0,0.00013496,2]
[329880228,1718783438535,-38493.5145,0.00013496,2]
[329880231,1718783438544,-1000.0,0.00013496,2]
[329880233,1718783438554,-500.0,0.00013588,2]
[329880235,1718783438563,-561.4789803,0.00013597,2]
[329880237,1718783438572,-7380.07,0.00013597,2]
[329880240,1718783438582,-174.60961132,0.00013598,2]
[329880244,1718783438591,-4711.27675974,0.00013598,2]
[329880248,1718783438601,-330.57400712,0.00013598,2]
[329880252,1718783438610,-316.40685217,0.00013598,2]
[329880256,1718783438619,-171.56244531,0.00013598,2]
[329880260,1718783438628,-10000.0,0.00013598,2]
[329880264,1718783438639,-374.23860924,0.000136,5]
[329880268,1718783438648,-561.4789803,0.00013675,2]
[329880272,1718783438658,-1023.64962857,0.00013692,2]
[329880275,1718783438667,-284.75817474,0.00013696,2]
[329880279,1718783438676,-5773.62273787,0.00013696,2]
[329880282,1718783438687,-339.37755264,0.00013696,2]